Cogmind - Beta 13 @@@ ROGUE MODE // 2024.05.01 @ 03:41:44 Player: puppuppit Result: Destroyed by G-47 Trooper with Particle Gun Performance ------------- Evolutions (2) 1000 Regions Visited (7) 1400 Robots Destroyed (74) 370 Value Destroyed (3264) 3264 Prototype IDs (27) 540 Alien Tech Used (0) 0 Bonus (1398) 1398 TOTAL SCORE: 7972 Bonus ------- High Alert Combat Kills 241 Follower Combat Kills 679 Entered Garrisons 200 Aligned with FarCom 300 Friendly Fire -22 Cogmind --------- Core Integrity 0/550 Matter 279/300 Energy 160/160 System Corruption 0% Temperature Cool (55) Movement Hovering (56) Location -8/Storage Parts ------- > --- POWER (1) -------- Light Nuclear Core > --- PROPULSION (4) --- Hover Unit Hover Unit Flight Unit > --- UTILITY (4) ------ Targeting Computer Improved Targeting Computer Improved Targeting Computer Light Armor Plating > --- WEAPON (2) ------- Particle Gun Light Assault Rifle > --- INVENTORY (5) ---- Light Nuclear Core Superbattery (1500) High-capacity Matter Pod (200) Gauss Rifle Peak State ------------ > --- POWER ------------ Light Angular Momentum Engine > --- PROPULSION ------- Aluminum Leg Aluminum Leg Carbon-fiber Leg Carbon-fiber Leg > --- UTILITY ---------- Targeting Computer Improved Targeting Computer Improved Targeting Computer Light Armor Plating > --- WEAPON ----------- Beam Rifle Particle Gun > --- INVENTORY -------- Improved Ion Engine Medium Storage Unit Superbattery High-capacity Matter Pod [Rating: 24] Favorites ----------- Power Improved Ion Engine Engine Improved Ion Engine Power Core Light Nuclear Core Propulsion Aluminum Leg Treads Light Treads Leg Aluminum Leg Wheel Wheel Hover Unit Hover Unit Flight Unit Flight Unit Utility Improved Targeting Computer Device Heat Sink Storage Small Storage Unit Processor Improved Targeting Computer Protection Light Armor Plating Weapon Particle Gun Energy Gun Particle Gun Ballistic Gun Light Assault Rifle Launcher Grenade Launcher Special Weapon Plasma Cutter Build | -11 -10 -10 -10 -9 -8 -8 -8 ------- Run | Yrd Mat Min Exi Min Mat Gar Sto Slots Evolved 4 | . . . . . 4 . . Power . | . . . . . . . . Propulsion 2 | . . . . . 2 . . Utility 2 | . . . . . 2 . . Weapon . | . . . . . . . . Parts Attached 70 | 8 9 5 . 7 4 28 9 Power 11 | 1 2 1 . . . 5 2 Engine 8 | 1 2 . . . . 5 . Core 3 | . . 1 . . . . 2 Reactor . | . . . . . . . . Propulsion 23 | 3 1 2 . 1 1 13 2 Treads 1 | . . . . 1 . . . Leg 10 | . . . . . . 10 . Wheel 3 | 3 . . . . . . . Hover 5 | . 1 1 . . 1 . 2 Flight 4 | . . 1 . . . 3 . Utility 12 | 2 2 . . 2 3 2 1 Device 3 | 1 . . . . 1 1 . Storage 1 | 1 . . . . . . . Processor 6 | . 2 . . 2 2 . . Hackware . | . . . . . . . . Protection 2 | . . . . . . 1 1 Artifact . | . . . . . . . . Weapon 24 | 2 4 2 . 4 . 8 4 Energy Gun 13 | 2 3 1 . 2 . 4 1 Energy Cannon . | . . . . . . . . Ballistic Gun 8 | . . 1 . 1 . 3 3 Ballistic Cannon . | . . . . . . . . Launcher 2 | . 1 . . 1 . . . Special Weapon 1 | . . . . . . 1 . Impact Weapon . | . . . . . . . . Slashing Weapon . | . . . . . . . . Piercing Weapon . | . . . . . . . . Special Melee Weapon . | . . . . . . . . Unidentified Prototypes . | . . . . . . . . Parts Lost 23 | . 3 1 . 2 . 14 3 Power 1 | . . . . . . 1 . Propulsion 12 | . 2 1 . 1 . 6 2 Utility 1 | . . . . . . 1 . Weapon 9 | . 1 . . 1 . 6 1 Highest Loss Streak 4 | . 2 1 . 2 . 4 2 To Critical Strikes . | . . . . . . . . Average Slot Usage (%) 84 | . 91 97 85 82 54 81 85 Engine 4 | . 7 1 . . . 5 6 Core 1 | . . 11 . . . . 1 Leg 11 | . . . . . . 23 . Hover 8 | . 23 25 14 14 9 1 3 Flight 6 | . . 1 14 11 . . 21 Device 1 | . 5 . . . . . 7 Processor 27 | . 16 28 28 28 27 30 27 Protection 1 | . . . . . . 3 1 Energy Gun 11 | . 14 14 14 13 9 11 7 Ballistic Gun 6 | . . 13 14 4 9 4 9 Launcher 2 | . 13 . . 8 . . . Naked Turns . | . . . . . . . . Heaviest Build 18 | 12 14 9 4 6 6 18 12 Greatest Support 50 | 26 20 12 4 6 6 50 12 Greatest Overweight (x) 3 | . 1 1 . . . 3 . Average Overweight (x) . | . . . . . . . . Largest Inventory Capacity 8 | 8 8 5 5 5 5 5 5 Average Capacity 5 | 6 6 5 5 5 5 5 5 Most Carried 6 | 1 6 5 5 5 5 5 5 Average Carried 4 | . 4 4 4 4 4 4 4 Final Capacity 8 | 8 5 5 5 5 5 5 5 Final Carried 5 | 1 5 4 5 5 5 5 4 Class Distribution -------------------- 55% | Scavenger-Mutant 43% | Mutant Dominant Class ---------------- Mutant | -10/Materials Scavenger-Mutant | -10/Mines Mutant | -10/Exiles Mutant | -9/Mines Mutant | -8/Materials Scavenger-Mutant | -8/Garrison Scavenger-Mutant | -8/Storage Resources | -11 -10 -10 -10 -9 -8 -8 -8 ----------- Run | Yrd Mat Min Exi Min Mat Gar Sto Matter Collected 1721 | 206 217 253 340 160 62 408 75 Remotely . | . . . . . . . . Salvage Created 2458 | 116 410 122 . 400 191 1098 121 Parts 154 | 12 42 16 . 23 10 47 4 Haulers Intercepted 1 | . 1 . . . . . . Recyclers Shooed . | . . . . . . . . Parts Field Recycled . | . . . . . . . . Retrieved Matter . | . . . . . . . . Parts Self-Destructed . | . . . . . . . . Prevented . | . . . . . . . . Kills | -11 -10 -10 -10 -9 -8 -8 -8 ------- Run | Yrd Mat Min Exi Min Mat Gar Sto Combat Hostiles Destroyed 57 | . 14 4 . 8 4 25 2 Melee 1 | . . . . . . 1 . Guns 35 | . 2 3 . 1 4 23 2 Cannons 1 | . . . . . . 1 . AOE 20 | . 12 1 . 7 . . . Classes Destroyed 12 | 2 7 . . 1 1 1 . Worker 2 | . 1 1 . . . . . Builder 2 | . 2 . . . . . . Tunneler 4 | 3 1 . . . . . . Hauler 1 | . 1 . . . . . . Recycler 3 | 1 . . . 2 . . . Operator 2 | . 1 . . . . . 1 Watcher 3 | . 3 . . . . . . Swarmer 9 | . 4 2 . . . 3 . Grunt 34 | . 10 2 . 7 3 11 1 Brawler 2 | . . . . 1 . 1 . Duelist 3 | . . . . . . 3 . Sentry 9 | . . . . . 1 7 1 Best Kill Streak 6 | 4 6 2 . 6 4 4 1 Combat Bots Only 6 | . 5 1 . 6 4 4 1 Max Kills in Single Turn 3 | 1 3 1 . 2 1 1 1 Gunslinging . | . . . . . . . . Exploded 2 | . 2 1 . 1 . . . Melee 1 | . . . . . . 1 . Uniques/NPCs Destroyed . | . . . . . . . . Combat | -11 -10 -10 -10 -9 -8 -8 -8 -------- Run | Yrd Mat Min Exi Min Mat Gar Sto Hostile Shots Fired 271 | . 35 20 . 13 7 169 27 Missed 105 | . 20 8 . 3 6 57 11 Damage Taken 2497 | . 232 143 . 137 16 1727 242 Core 675 | . 52 28 . 28 16 476 75 Absorbed by Shields . | . . . . . . . . Core Remaining (%) 78 | 100 . . . 56 . . . Volleys Fired 196 | 7 28 17 . 19 10 99 16 Largest 2 | 2 2 2 . 2 2 2 2 Hottest 121 | 90 80 85 . 95 79 121 85 Shots Fired 343 | 14 47 34 . 27 18 174 29 Gun 311 | 14 28 33 . 17 18 172 29 Cannon . | . . . . . . . . Launcher 30 | . 19 1 . 10 . . . Special 2 | . . . . . . 2 . Kinetic 116 | . . 16 . . 8 72 20 Thermal 197 | 14 28 17 . 17 10 102 9 Explosive 30 | . 19 1 . 10 . . . Electromagnetic . | . . . . . . . . Robot Hit Streak 30 | 2 5 9 . 10 9 30 13 Robot Miss Streak 5 | 5 3 3 . 4 3 3 2 Penetration Max . | . . . . . . . . Secondary Targets 3 | . . . . . 2 1 . Max Gunslinging Chain 1 | . . . . . 1 1 . Shots Hit Robots 238 | 5 28 24 . 16 15 127 23 Core Hits 154 | 5 36 12 . 17 12 65 7 Critical Kills . | . . . . . . . . Critical Parts Destroyed . | . . . . . . . . Critical Strikes 9 | 2 . . . . . 6 1 Burn 9 | 2 . . . . . 6 1 Melee Attacks . | . . . . . . . . Impact . | . . . . . . . . Slashing . | . . . . . . . . Piercing . | . . . . . . . . Sneak Attacks . | . . . . . . . . Combat Hostiles . | . . . . . . . . Follow-up Attacks . | . . . . . . . . Damage Inflicted 4896 | 60 1369 349 . 637 240 1994 247 Guns 3120 | 60 210 261 . 146 240 1956 247 Cannons . | . . . . . . . . Explosions 1738 | . 1159 88 . 491 . . . Melee . | . . . . . . . . Ramming 14 | . . . . . . 14 . Kinetic 1263 | . . 99 . . 124 902 138 Thermal 1881 | 60 210 162 . 146 116 1078 109 Explosive 1738 | . 1159 88 . 491 . . . Electromagnetic . | . . . . . . . . Impact . | . . . . . . . . Slashing . | . . . . . . . . Piercing . | . . . . . . . . Highest Corruption . | . . . . . . . . Average Corruption . | . . . . . . . . Corruption Purged . | . . . . . . . . Corruption Blocked . | . . . . . . . . Overload Shots . | . . . . . . . . Overflow Damage 57 | . 57 . . . . . . Projectiles . | . . . . . . . . Explosions 57 | . 57 . . . . . . Melee . | . . . . . . . . Knockbacks . | . . . . . . . . Impact . | . . . . . . . . Kinetic . | . . . . . . . . Secondary . | . . . . . . . . Self-Inflicted Damage 53 | . 53 . . . . . . Shots 2 | . 2 . . . . . . Rammed . | . . . . . . . . Targets Rammed 19 | . . . . . . 19 . Kicked 19 | . . . . . . 19 . Crushed . | . . . . . . . . Highest Temperature 319 | 180 134 224 . 139 . 319 55 Average Temperature 61 | 83 41 88 . 45 . 63 28 Received Heat Transfer 1077 | . 36 81 . 87 . 792 81 Siege Activations . | . . . . . . . . Robots Corrupted . | . . . . . . . . Combat Hostiles . | . . . . . . . . Parts Fried . | . . . . . . . . Impact Corruptions . | . . . . . . . . Robots Melted . | . . . . . . . . Combat Hostiles . | . . . . . . . . Parts Melted 6 | 1 . . . . . 5 . Heat Transferred 5177 | 309 545 371 . 333 296 2990 333 Parts Sabotaged . | . . . . . . . . Parts Stolen . | . . . . . . . . Parts Stripped . | . . . . . . . . Power Chain Reactions . | . . . . . . . . Alert | -11 -10 -10 -10 -9 -8 -8 -8 ------- Run | Yrd Mat Min Exi Min Mat Gar Sto Peak Influence 1229 | 20 413 260 . 323 184 1229 927 Initial 598 | . 13 80 . . 43 119 598 Average 520 | 6 243 169 . 155 105 732 605 Maximum Alert Level 4 | . 2 1 . 1 . 4 3 Low Security (%) 19 | 100 27 62 . 52 100 3 . Level 1 20 | . 66 37 . 47 . 10 . Level 2 32 | . 5 . . . . 36 79 Level 3 20 | . . . . . . 35 20 Level 4 6 | . . . . . . 13 . Level 5 . | . . . . . . . . High Security . | . . . . . . . . Max Security . | . . . . . . . . Squads Dispatched 9 | . 3 . . . 2 . 4 Investigation 5 | . 2 . . . 1 . 2 Extermination . | . . . . . . . . Reinforcement 3 | . 1 . . . . . 2 Assault . | . . . . . . . . Garrison 1 | . . . . . 1 . . Intercept . | . . . . . . . . Searches Triggered . | . . . . . . . . Construction Impeded . | . . . . . . . . Haulers Reinforced . | . . . . . . . . Active Scanning Responses . | . . . . . . . . Cargo Convoy Interrupts . | . . . . . . . . Stealth | -11 -10 -10 -10 -9 -8 -8 -8 --------- Run | Yrd Mat Min Exi Min Mat Gar Sto Distress Signals 3 | . . 1 . . . . 2 Communications Jammed . | . . . . . . . . Distress Signals . | . . . . . . . . Times Spotted 87 | . 19 9 . 9 5 30 15 Peak Tracking Total 7 | . 4 3 . 5 3 5 7 Tactical Retreats 8 | . . 1 . . . 6 1 Traps | -11 -10 -10 -10 -9 -8 -8 -8 ------- Run | Yrd Mat Min Exi Min Mat Gar Sto Traps Triggered 5 | . 1 . . . . 4 . Indirectly . | . . . . . . . . Trap Hack Attempts . | . . . . . . . . Triggered . | . . . . . . . . Disarmed . | . . . . . . . . Reprogrammed . | . . . . . . . . Reused . | . . . . . . . . Traps Extracted . | . . . . . . . . Installed . | . . . . . . . . Triggered . | . . . . . . . . Machines | -11 -10 -10 -10 -9 -8 -8 -8 ---------- Run | Yrd Mat Min Exi Min Mat Gar Sto Machines Disabled 7 | . 1 . . . . 5 1 Max in Single Turn 1 | . 1 . . . . 1 . Garrison Relay 5 | . . . . . . 5 . Machines Repaired . | . . . . . . . . Machines Dismantled . | . . . . . . . . Machines Sabotaged . | . . . . . . . . Overloaded Fab Kills . | . . . . . . . . Hacking | -11 -10 -10 -10 -9 -8 -8 -8 --------- Run | Yrd Mat Min Exi Min Mat Gar Sto Machines Accessed 20 | . 6 . 5 . 2 3 4 Terminals 12 | . 5 . . . . 3 4 Fabricators . | . . . . . . . . Repair Stations 1 | . 1 . . . . . . Recycling Units . | . . . . . . . . Scanalyzers 1 | . . . . . 1 . . Garrison Access 1 | . . . . . 1 . . Total Hacks 95 | . 22 . 50 . 5 7 11 Successful 70 | . 11 . 50 . 5 2 2 Failed 24 | . 10 . . . . 5 9 Catastrophic 7 | . 4 . . . . . 3 Database Lockouts 1 | . 1 . . . . . . Manual 22 | . 13 . 1 . . 1 7 Terminals 37 | . 19 . . . . 7 11 Fabricators . | . . . . . . . . Repair Stations 3 | . 3 . . . . . . Recycling Units . | . . . . . . . . Scanalyzers 4 | . . . . . 4 . . Garrison Access 1 | . . . . . 1 . . Terminal Hacks 64 | . 10 . 50 . . 2 2 Record 52 | . 3 . 49 . . . . Robot Schematic 1 | . 1 . . . . . . Robot Analysis 3 | . 3 . . . . . . Prototype ID Bank 2 | . 2 . . . . . . Open Door 1 | . . . . . . 1 . Level Access Points 1 | . . . . . . . 1 Unreport Threat 1 | . 1 . . . . . . Zone Layout 1 | . . . . . . . 1 Garrison Registry 1 | . . . . . . 1 . Derelict Proto ID Bank 1 | . . . 1 . . . . Fabricator Hacks . | . . . . . . . . Repair Station Hacks 1 | . 1 . . . . . . Refit 1 | . 1 . . . . . . Recycling Unit Hacks . | . . . . . . . . Scanalyzer 4 | . . . . . 4 . . Insert Component 2 | . . . . . 2 . . Analyze 2 | . . . . . 2 . . Garrison Access Hacks 1 | . . . . . 1 . . Unlock Access 1 | . . . . . 1 . . Unauthorized Hacks . | . . . . . . . . Terminals . | . . . . . . . . Fabricators . | . . . . . . . . Repair Stations . | . . . . . . . . Recycling Units . | . . . . . . . . Scanalyzers . | . . . . . . . . Garrison Access . | . . . . . . . . Data Cores Recovered 1 | . . . . . . . 1 Used . | . . . . . . . . Hacking Detections 14 | . 6 . . . 1 3 4 Full Trace Events 7 | . 2 . . . 1 2 2 Feedback Events . | . . . . . . . . Feedback Blocked . | . . . . . . . . Robot Schematics Acquired 1 | . 1 . . . . . . Robots Built . | . . . . . . . . Authchips . | . . . . . . . . Time . | . . . . . . . . Total Robot Build Rating . | . . . . . . . . Part Schematics Acquired 2 | . . . . . 2 . . Parts Built . | . . . . . . . . Authchips . | . . . . . . . . Time . | . . . . . . . . Total Part Build Rating . | . . . . . . . . Parts Repaired . | . . . . . . . . Time . | . . . . . . . . Parts Recycled . | . . . . . . . . Recycled Matter . | . . . . . . . . Retrieved Matter . | . . . . . . . . Retrieved Components . | . . . . . . . . Parts Scanalyzed 2 | . . . . . 2 . . Part Schematics Acquired 2 | . . . . . 2 . . Parts Damaged . | . . . . . . . . Bothacking | -11 -10 -10 -10 -9 -8 -8 -8 ------------ Run | Yrd Mat Min Exi Min Mat Gar Sto Used RIF Installer . | . . . . . . . . Robots Hacked . | . . . . . . . . Non-combat . | . . . . . . . . Combat . | . . . . . . . . Robot Hacks Applied . | . . . . . . . . Relay Couplers Released 20 | . . . . . . 20 . Machine Destruction 20 | . . . . . . 20 . Fabnet Peak Effective % . | . . . . . . . . Robots Rewired . | . . . . . . . . Allies Hacked . | . . . . . . . . Hacks Repelled . | . . . . . . . . Allies | -11 -10 -10 -10 -9 -8 -8 -8 -------- Run | Yrd Mat Min Exi Min Mat Gar Sto Total Allies 15 | . . 1 . 3 . 1 10 Largest Group 10 | . . 1 . 3 2 1 10 Highest-Rated Group 173 | . . 31 . 40 32 25 173 Highest-Rated Ally 31 | . . 31 . 16 16 25 29 Total Orders . | . . . . . . . . Ally Attacks 133 | . . 6 . 21 8 5 93 Total Damage 1685 | . . 104 . 259 73 60 1189 Kills 22 | . . 2 . 4 1 . 15 Allies Corrupted . | . . . . . . . . Allies Melted . | . . . . . . . . Intel | -11 -10 -10 -10 -9 -8 -8 -8 ------- Run | Yrd Mat Min Exi Min Mat Gar Sto Robot Analysis Total 3 | . 3 . . . . . . Derelict Logs Recovered 4 | . . 1 . 3 . . . Drone Launches . | . . . . . . . . Drone Recoveries . | . . . . . . . . Exploration | -11 -10 -10 -10 -9 -8 -8 -8 ------------- Run | Yrd Mat Min Exi Min Mat Gar Sto Turns Passed 4566 | 71 432 361 214 518 86 2090 794 Spaces Moved 4145 | 44 418 511 526 718 80 1421 427 Core 7 | 2 . . . 1 . 3 1 Treads . | . . . . . . . . Legs 1016 | . . . . . . 1016 . Wheels 96 | 42 54 . . . . . . Hover 1859 | . 364 479 . 449 80 363 124 Flight 1167 | . . 32 526 268 . 39 302 Fastest Speed 34 | 50 66 40 40 40 60 34 34 Average Speed 71 | 86 79 56 40 52 60 104 41 Slowest Speed 200 | 90 156 120 40 60 60 200 60 Overloaded Moves . | . . . . . . . . Propulsion Burnouts . | . . . . . . . . Robots Hopped 16 | . . . . 9 . . 7 Cave-ins Triggered . | . . . . . . . . Exploration Rate (%) 59 | 4 85 92 90 96 10 58 42 Regions Visited 7 Branch Regions 4 Pre-discovered Areas 3 | . . 2 1 . . . . Known Exits Taken 1 | . . . . . 1 . . Unknown Exits Taken 5 | 1 1 1 1 1 . . . Scrap Searched 2 | . . . . 2 . . . Spaces Dug . | . . . . . . . . Terrain Destroyed 155 | . 79 8 . 68 . . . Melee . | . . . . . . . . Projectile . | . . . . . . . . AOE 155 | . 79 8 . 68 . . . Terrain Rammed . | . . . . . . . . Walls Destroyed . | . . . . . . . . Machines Disabled . | . . . . . . . . Actions | -11 -10 -10 -10 -9 -8 -8 -8 --------- Run | Yrd Mat Min Exi Min Mat Gar Sto Total 5376 | 58 474 552 529 822 99 1833 1009 Wait 907 | . . 18 1 77 2 255 554 Move 4106 | 43 417 510 525 699 79 1420 413 Hop 16 | . . . . 9 . . 7 Pick Up 18 | . 9 . 2 3 1 2 1 Fast Attach 45 | 7 3 . . 6 3 22 4 Attach 9 | . 2 2 . . 1 2 2 Detach 9 | . 3 . . 2 1 2 1 Swap 16 | 1 4 3 . 1 . 4 3 Drop 29 | . 8 2 1 6 2 6 4 Fire 196 | 7 28 17 . 19 10 99 16 Melee . | . . . . . . . . Ram . | . . . . . . . . Kick 19 | . . . . . . 19 . Crush . | . . . . . . . . Escape Stasis 2 | . . . . . . 2 . Rewire 4 | . . . . . . . 4 Trap . | . . . . . . . . Miscellaneous . | . . . . . . . . Route ------- -11/Scrapyard -10/Materials (discovered 4 exits: [*Mat x2] / [*Min x2]) -10/Mines (discovered 2 exits: [*Mat] / *Exi) -10/Exiles -9/Mines (discovered 2 exits: *Mat x2) -8/Materials -8/Garrison (discovered 3 exits: *Sto x3) -8/Storage (discovered 1 exit: Fac) History --------- Turn | Location | Event 13 | -11/Scrapyard | Discovered new exit (range 16) 72 | -11/Scrapyard | Entered Materials 227 | -10/Materials | Discovered new exit (range 16) 304 | -10/Materials | Build established: Mutant 307 | -10/Materials | Discovered new exit (range 14) 389 | -10/Materials | Discovered new exit (range 4) 437 | -10/Materials | Discovered new exit (range 6) 449 | -10/Materials | Central database locked down 504 | -10/Materials | Entered Mines 524 | -10/Mines | Escorted by a lone wolf Derelict 544 | -10/Mines | Learned location of Storage (-8) 556 | -10/Mines | Learned Materials emergency access door positions 706 | -10/Mines | Discovered new exit (range 3) 852 | -10/Mines | Deemed a non-threat by the Exiles lab entrance 853 | -10/Mines | Discovered new exit (range 5) 865 | -10/Mines | Entered Exiles 865 | -10/Exiles | Accompanied by 1 ally 877 | -10/Exiles | Met 8R-AWN 884 | -10/Exiles | Met EX-HEX 895 | -10/Exiles | Met EX-BIN 901 | -10/Exiles | Aligned with FarCom system 901 | -10/Exiles | Given EX-Vault access code 918 | -10/Exiles | Opened EX-Vault 920 | -10/Exiles | Found Superbattery 929 | -10/Exiles | Warned to stay clear of 0b10 Research branches 940 | -10/Exiles | Met EX-DEC 945 | -10/Exiles | Learned location of Zion (-6) 970 | -10/Exiles | Visited The Gauntlet 1054 | -10/Exiles | Discovered new exit (range 12) 1079 | -10/Exiles | Left Exiles lab with Superbattery 1079 | -10/Exiles | Entered Mines 1085 | -9/Mines | Met a Derelict bent on vengeance 1106 | -9/Mines | Discovered new exit (range 10) 1122 | -9/Mines | Learned Materials security intel 1326 | -9/Mines | Discovered new exit (range 10) 1356 | -9/Mines | Assisted by bots powering up and referring to "LRC-V3" 1357 | -9/Mines | Learned location of 1 exit from Proximity Caves 1510 | -9/Mines | Joined a pair of Derelicts in attacking an 0b10 outpost 1597 | -9/Mines | Entered Materials 1597 | -8/Materials | Accompanied by 2 allies 1597 | -8/Materials | Evolved 4 slots: Propulsion x2, Utility x2 1628 | -8/Materials | Garrison activated, responded to threat 1672 | -8/Materials | Identified exit to Garrison 1683 | -8/Materials | Entered Garrison 1683 | -8/Garrison | Accompanied by 1 ally 1700 | -8/Garrison | Triggered checkpoint 1739 | -8/Garrison | Discovered new exit (range 52) 1739 | -8/Garrison | Discovered new exit (range 74) 1739 | -8/Garrison | Discovered new exit (range 38) 1788 | -8/Garrison | Garrison Relay disabled 1808 | -8/Garrison | Triggered checkpoint 2064 | -8/Garrison | Triggered checkpoint 2145 | -8/Garrison | Lost 3 parts (2n1w) 2162 | -8/Garrison | Garrison Relay disabled 2169 | -8/Garrison | Rescued a captive Derelict 2301 | -8/Garrison | Core integrity fell below 50% 2374 | -8/Garrison | Core integrity fell below 20% 2380 | -8/Garrison | Lost 4 parts (1n3w) 2685 | -8/Garrison | Build established: Scavenger-Mutant 2740 | -8/Garrison | Garrison Relay disabled 2824 | -8/Garrison | Triggered checkpoint 2959 | -8/Garrison | Garrison Relay disabled 3490 | -8/Garrison | Garrison Relay disabled 3773 | -8/Garrison | Entered Storage 4287 | -8/Storage | Identified exit to Factory 4365 | -8/Storage | Assisted by bots powering up and referring to "LRC-V3" 4429 | -8/Storage | Lost 3 allies 4567 | -8/Storage | Destroyed by G-47 Trooper with Particle Gun Last Messages --------------- Downloaded map data. 04463_ Connecting with Terminal... 04469_ W-25 Informer sends out distress signal. 04469_ Connecting with Terminal... 04469_ ALERT: Suspicious activity at Terminal S002. Dispatching Investigation squad. 04484_ W-25 Informer sends out distress signal. 04493_ G-47 Trooper destroyed. 04499_ Slug penetrates Trooper 3i. 04504_ K-01 Serf collects debris. 04511_ Dropped Med. Storage Unit. 04512_ K-01 Serf collects debris. 04514_ Acquired 10 matter. 04515_ K-01 Serf collects debris. 04529_ K-01 Serf cleans the Terminal. 04551_ Trooper 3i destroyed. 04558_ Trooper 3f destroyed. 04564_ G-47 Trooper destroyed. 04564_ Trooper 3e destroyed. 04566_ Trooper 3h destroyed. Map ----- +----------------------------------------------------+ | | | | | | | | | | | | | | | | | | | | | | | | | | | ??????????????????????????? | | ?????##########???????????? | | ?????# #???????????? | | ?????# #???????????? | | ?##### """#???????????? | | ?# # """#???????????? | | ?# # ""#???????????? | | ?# # """#???????????? | | ?# # """#?? ???????? | | ?# # #?? ] ?????? | | ?# # % #??? ?????? | | ?# #####+#########+###### | | ?#@ % ^ ^^ ^^ | | ?# ^ ^ | | ?# %= ^^""" "" | | ?# %%############# ^"R"^ "" | | ?# =#??# # " " "" | | ?#!% #### """ # % | | ?# #""" """ # | | ?# g#"Y """ + | | ?# =%#""" # | | ?# !#### """ ###+#+#### | | ?# g #### """ ] # | | ?# / """ # """"" | | ?# #### # "???" | | ?## ##??###### ### "??"" | | ??# #????????###?# ""??" | | ??# #????????????# "???" | | ??# #????????????# """"" | | ??# #????????????# | | ??# #????????????########## | | ??# #?????????????????????? | | ??# #?????????????????????? | | ??# #?????????????????????? | | ??# #?????????????????????? | | ??? ??????????????????????? | | ??? ??????????????????????? | +----------------------------------------------------+ Best States ------------- Heat Dissipation 41 Energy Generation 18 Energy Capacity 265 Matter Stores 300 Matter Capacity 300 Sight Range 16 Terrain Scan Range 16 Terrain Scan Density 10 Armor Coverage 150 Evasion (%) 63 Targeting Accuracy 17 Recoil Reduction 1 Salvage Targeting 2 Item Schematics ----------------- Hover Unit | -8/Materials | Scanalyzed Lgt. Angular Momentum Engine | -8/Materials | Scanalyzed Robot Schematics ------------------ O-16 Technician | -10/Materials | Hacked Fabricated ------------ Nothing Alien Tech Used ----------------- None Achievements -------------- None Challenges ------------ None Game ------ Seed DerelictFrostStorage Manual? 0 Play Time 00:41:16 Cumulative 289.3 hours Start 2024.05.01 @ 03:02:39 End 2024.05.01 @ 03:41:44 Sessions 1 Manual Loads 0 Difficulty Rogue Special Mode None Game No. 117 Rogue 117 Adventurer 0 Explorer 0 Win Type - Total 1 Types 0/0/1/0/0/0/0/0/0 Lore% 65 Gallery% 73 Achievement% 59 Wizard Run 0 Options --------- Layout 0 ASCII 0 Keyboard 1 Movement Arrows Keybinds 0 Fullscreen 1 Font 12/Proggy Map View 83x54 Zoom Use 0% Tactical HUD 1 Map Filters NONE Filters NONE Steam 0 RUN: 38e7e82c-0ac4-4515-b822-f4eca9f4987a